Cogmind - Beta 13 @@@ ROGUE MODE // 2024.04.01 @ 12:11:46 Player: Skarma Result: Destroyed by G-47 Trooper with Particle Gun Performance ------------- Evolutions (2) 1000 Regions Visited (3) 600 Robots Destroyed (15) 75 Value Destroyed (411) 411 Prototype IDs (0) 0 Alien Tech Used (0) 0 Bonus (0) 0 TOTAL SCORE: 2086 Bonus ------- None Cogmind --------- Core Integrity 0/550 Matter 342/500 Energy 29/100 System Corruption 0% Temperature Warm (157) Movement Core (450) Ox8 Location -8/Materials Parts ------- > --- POWER (2) -------- (None) > --- PROPULSION (4) --- (None) > --- UTILITY (2) ------ Large Storage Unit High-capacity Matter Pod > --- WEAPON (3) ------- Beam Cannon > --- INVENTORY (15) --- Light Ion Engine Small Storage Unit Propulsion Shielding Shield Generator Long-range Tractor Beam Peak State ------------ > --- POWER ------------ Light Ion Engine Light Nuclear Core > --- PROPULSION ------- Aluminum Leg Aluminum Leg Aluminum Leg Aluminum Leg > --- UTILITY ---------- Large Storage Unit High-capacity Matter Pod > --- WEAPON ----------- Beam Cannon Heavy Particle Cannon Heavy Hammer > --- INVENTORY -------- Light Ion Engine Aluminum Leg Small Storage Unit Propulsion Shielding Shield Generator Long-range Tractor Beam Small Laser Particle Gun Beam Cannon [Rating: 17] Favorites ----------- Power Light Nuclear Core Engine Light Ion Engine Power Core Light Nuclear Core Propulsion Aluminum Leg Leg Aluminum Leg Wheel Compact Wheel Utility Large Storage Unit Storage Large Storage Unit Protection Propulsion Shielding Weapon Beam Cannon Energy Gun Particle Gun Energy Cannon Beam Cannon Ballistic Gun Assault Rifle Impact Weapon Heavy Hammer Build | -11 -10 -9 -8 ------- Run | Yrd Mat Mat Mat Slots Evolved 4 | . . 2 2 Power 1 | . . . 1 Propulsion 2 | . . 2 . Utility . | . . . . Weapon 1 | . . . 1 Parts Attached 26 | 6 8 2 10 Power 4 | 1 1 . 2 Engine 2 | 1 . . 1 Core 2 | . 1 . 1 Reactor . | . . . . Propulsion 8 | 2 2 2 2 Treads . | . . . . Leg 6 | . 2 2 2 Wheel 2 | 2 . . . Hover . | . . . . Flight . | . . . . Utility 5 | 1 3 . 1 Device . | . . . . Storage 4 | 1 2 . 1 Processor . | . . . . Hackware . | . . . . Protection 1 | . 1 . . Artifact . | . . . . Weapon 9 | 2 2 . 5 Energy Gun 3 | . 1 . 2 Energy Cannon 3 | . 1 . 2 Ballistic Gun 2 | 2 . . . Ballistic Cannon . | . . . . Launcher . | . . . . Special Weapon . | . . . . Impact Weapon 1 | . . . 1 Slashing Weapon . | . . . . Piercing Weapon . | . . . . Special Melee Weapon . | . . . . Unidentified Prototypes . | . . . . Parts Lost 14 | . 1 . 13 Power 3 | . . . 3 Propulsion 5 | . . . 5 Utility 1 | . 1 . . Weapon 5 | . . . 5 Highest Loss Streak 13 | . 1 . 13 To Critical Strikes . | . . . . Average Slot Usage (%) 96 | . 98 100 89 Engine 2 | . 1 . 7 Core 11 | . 12 11 7 Leg 30 | . 25 44 30 Wheel 1 | . 2 . . Storage 20 | . 21 22 18 Protection 2 | . 4 . . Energy Gun 10 | . 12 11 4 Energy Cannon 11 | . 10 11 13 Ballistic Gun 2 | . 4 . . Impact Weapon 2 | . . . 8 Naked Turns . | . . . . Heaviest Build 44 | 11 32 32 44 Greatest Support 40 | 32 32 40 40 Greatest Overweight (x) 10 | . 1 . 10 Average Overweight (x) . | . . . . Largest Inventory Capacity 15 | 8 15 15 15 Average Capacity 12 | 6 11 15 15 Most Carried 11 | 5 11 10 10 Average Carried 8 | 2 8 9 8 Final Capacity 15 | 8 15 15 15 Final Carried 11 | 4 11 9 5 Class Distribution -------------------- 70% | Mutant 29% | Scavenger-Mutant Dominant Class ---------------- Mutant | -10/Materials Scavenger-Mutant | -9/Materials Mutant | -8/Materials Resources | -11 -10 -9 -8 ----------- Run | Yrd Mat Mat Mat Matter Collected 461 | 240 158 31 32 Remotely . | . . . . Salvage Created 469 | . 158 175 136 Parts 30 | . 11 12 7 Haulers Intercepted . | . . . . Recyclers Shooed . | . . . . Parts Field Recycled . | . . . . Retrieved Matter . | . . . . Parts Self-Destructed . | . . . . Prevented . | . . . . Kills | -11 -10 -9 -8 ------- Run | Yrd Mat Mat Mat Combat Hostiles Destroyed 13 | . 5 6 2 Guns 6 | . 3 3 . Cannons 6 | . 2 3 1 Classes Destroyed 5 | . 3 1 1 Watcher 2 | . 1 . 1 Swarmer 6 | . 3 3 . Grunt 4 | . 2 1 1 Sentry 2 | . . 2 . Hunter 1 | . . . 1 Best Kill Streak 3 | . 3 3 2 Combat Bots Only 3 | . 3 3 1 Max Kills in Single Turn 1 | . 1 1 1 Gunslinging . | . . . . Exploded . | . . . . Melee . | . . . . Uniques/NPCs Destroyed . | . . . . Combat | -11 -10 -9 -8 -------- Run | Yrd Mat Mat Mat Hostile Shots Fired 139 | . 31 23 85 Missed 31 | . 8 7 16 Damage Taken 1946 | 1 207 159 1579 Core 635 | . 59 16 560 Absorbed by Shields . | . . . . Redirected to Shielding 12 | . 12 . . Core Remaining (%) 90 | 100 76 96 . Volleys Fired 52 | . 20 17 15 Largest 2 | . 2 2 2 Hottest 135 | . 125 125 135 Shots Fired 99 | . 39 30 30 Gun 49 | . 28 13 8 Cannon 50 | . 11 17 22 Launcher . | . . . . Special . | . . . . Kinetic 17 | . 17 . . Thermal 82 | . 22 30 30 Explosive . | . . . . Electromagnetic . | . . . . Robot Hit Streak 6 | . 6 4 3 Robot Miss Streak 4 | . 4 3 3 Penetration Max . | . . . . Secondary Targets 1 | . 1 . . Max Gunslinging Chain 1 | . 1 . . Shots Hit Robots 54 | . 17 17 20 Core Hits 28 | . 11 10 7 Critical Kills . | . . . . Critical Parts Destroyed 1 | . . . 1 Critical Strikes 1 | . . . 1 Smash 1 | . . . 1 Melee Attacks 5 | . . . 5 Impact 5 | . . . 5 Slashing . | . . . . Piercing . | . . . . Sneak Attacks . | . . . . Combat Hostiles . | . . . . Follow-up Attacks . | . . . . Damage Inflicted 977 | 3 222 292 460 Guns 330 | . 147 118 65 Cannons 507 | . 69 174 264 Explosions . | . . . . Melee 131 | . . . 131 Ramming 9 | 3 6 . . Kinetic 116 | . 116 . . Thermal 721 | . 100 292 329 Explosive . | . . . . Electromagnetic . | . . . . Impact 131 | . . . 131 Slashing . | . . . . Piercing . | . . . . Highest Corruption . | . . . . Average Corruption . | . . . . Corruption Purged . | . . . . Corruption Blocked . | . . . . Overload Shots . | . . . . Overflow Damage 27 | . . . 27 Projectiles . | . . . . Explosions . | . . . . Melee 27 | . . . 27 Knockbacks 1 | . . . 1 Impact 1 | . . . 1 Kinetic . | . . . . Secondary . | . . . . Self-Inflicted Damage 4 | 1 3 . . Shots . | . . . . Rammed 3 | 1 2 . . Targets Rammed 3 | 1 2 . . Kicked . | . . . . Crushed . | . . . . Highest Temperature 483 | . 483 370 280 Average Temperature 131 | . 169 129 91 Received Heat Transfer 480 | . 42 48 390 Effects 4 | . 1 3 . Shutdowns 1 | . . 1 . Energy Bleed 2 | . 1 1 . Damage (minor) 1 | . . 1 . Siege Activations . | . . . . Robots Corrupted . | . . . . Combat Hostiles . | . . . . Parts Fried 1 | . . . 1 Impact Corruptions 1 | . . . 1 Robots Melted . | . . . . Combat Hostiles . | . . . . Parts Melted 1 | . . 1 . Heat Transferred 1519 | . 222 666 631 Parts Sabotaged . | . . . . Parts Stolen . | . . . . Parts Stripped . | . . . . Power Chain Reactions . | . . . . Alert | -11 -10 -9 -8 ------- Run | Yrd Mat Mat Mat Peak Influence 191 | . 162 191 154 Initial 80 | . . . 80 Average 68 | . 60 76 97 Maximum Alert Level . | . . . . Low Security (%) 100 | 100 100 100 100 Level 1 . | . . . . Level 2 . | . . . . Level 3 . | . . . . Level 4 . | . . . . Level 5 . | . . . . High Security . | . . . . Max Security . | . . . . Squads Dispatched 4 | . . 1 3 Investigation . | . . . . Extermination . | . . . . Reinforcement 3 | . . 1 2 Assault . | . . . . Garrison 1 | . . . 1 Intercept . | . . . . Searches Triggered . | . . . . Construction Impeded . | . . . . Haulers Reinforced . | . . . . Active Scanning Responses . | . . . . Cargo Convoy Interrupts . | . . . . Stealth | -11 -10 -9 -8 --------- Run | Yrd Mat Mat Mat Distress Signals 2 | . . 1 1 Communications Jammed . | . . . . Distress Signals . | . . . . Times Spotted 32 | . 11 8 13 Peak Tracking Total 7 | . 3 4 7 Tactical Retreats 1 | . . . 1 Traps | -11 -10 -9 -8 ------- Run | Yrd Mat Mat Mat Traps Triggered . | . . . . Indirectly . | . . . . Trap Hack Attempts . | . . . . Triggered . | . . . . Disarmed . | . . . . Reprogrammed . | . . . . Reused . | . . . . Traps Extracted . | . . . . Installed . | . . . . Triggered . | . . . . Machines | -11 -10 -9 -8 ---------- Run | Yrd Mat Mat Mat Machines Disabled . | . . . . Max in Single Turn . | . . . . Machines Repaired . | . . . . Machines Dismantled . | . . . . Machines Sabotaged . | . . . . Overloaded Fab Kills . | . . . . Hacking | -11 -10 -9 -8 --------- Run | Yrd Mat Mat Mat Machines Accessed 2 | . 1 1 . Terminals 1 | . 1 . . Fabricators . | . . . . Repair Stations . | . . . . Recycling Units . | . . . . Scanalyzers 1 | . . 1 . Garrison Access . | . . . . Total Hacks 3 | . 2 1 . Successful . | . . . . Failed 3 | . 2 1 . Catastrophic . | . . . . Database Lockouts . | . . . . Manual . | . . . . Terminals 2 | . 2 . . Fabricators . | . . . . Repair Stations . | . . . . Recycling Units . | . . . . Scanalyzers 1 | . . 1 . Garrison Access . | . . . . Terminal Hacks . | . . . . Fabricator Hacks . | . . . . Repair Station Hacks . | . . . . Recycling Unit Hacks . | . . . . Scanalyzer . | . . . . Garrison Access Hacks . | . . . . Unauthorized Hacks . | . . . . Terminals . | . . . . Fabricators . | . . . . Repair Stations . | . . . . Recycling Units . | . . . . Scanalyzers . | . . . . Garrison Access . | . . . . Data Cores Recovered . | . . . . Used . | . . . . Hacking Detections 2 | . 1 1 . Full Trace Events . | . . . . Feedback Events . | . . . . Feedback Blocked . | . . . . Robot Schematics Acquired . | . . . . Robots Built . | . . . . Authchips . | . . . . Time . | . . . . Total Robot Build Rating . | . . . . Part Schematics Acquired . | . . . . Parts Built . | . . . . Authchips . | . . . . Time . | . . . . Total Part Build Rating . | . . . . Parts Repaired . | . . . . Time . | . . . . Parts Recycled . | . . . . Recycled Matter . | . . . . Retrieved Matter . | . . . . Retrieved Components . | . . . . Parts Scanalyzed . | . . . . Part Schematics Acquired . | . . . . Parts Damaged . | . . . . Bothacking | -11 -10 -9 -8 ------------ Run | Yrd Mat Mat Mat Used RIF Installer . | . . . . Robots Hacked . | . . . . Non-combat . | . . . . Combat . | . . . . Robot Hacks Applied . | . . . . Relay Couplers Released . | . . . . Fabnet Peak Effective % . | . . . . Robots Rewired . | . . . . Allies Hacked . | . . . . Hacks Repelled . | . . . . Allies | -11 -10 -9 -8 -------- Run | Yrd Mat Mat Mat Total Allies . | . . . . Largest Group . | . . . . Highest-Rated Group . | . . . . Highest-Rated Ally . | . . . . Total Orders . | . . . . Ally Attacks . | . . . . Total Damage . | . . . . Kills . | . . . . Allies Corrupted . | . . . . Allies Melted . | . . . . Intel | -11 -10 -9 -8 ------- Run | Yrd Mat Mat Mat Robot Analysis Total . | . . . . Derelict Logs Recovered . | . . . . Drone Launches . | . . . . Drone Recoveries . | . . . . Exploration | -11 -10 -9 -8 ------------- Run | Yrd Mat Mat Mat Turns Passed 1232 | 60 647 260 265 Spaces Moved 729 | 51 389 175 114 Core 16 | 14 . . 2 Treads . | . . . . Legs 642 | . 355 175 112 Wheels 71 | 37 34 . . Hover . | . . . . Flight . | . . . . Fastest Speed 50 | 50 100 120 120 Average Speed 137 | 86 144 120 167 Slowest Speed 550 | 100 190 120 550 Overloaded Moves . | . . . . Propulsion Burnouts . | . . . . Robots Hopped . | . . . . Cave-ins Triggered . | . . . . Exploration Rate (%) 18 | 3 37 21 11 Regions Visited 3 Branch Regions . Pre-discovered Areas . | . . . . Known Exits Taken . | . . . . Unknown Exits Taken 3 | 1 1 1 . Scrap Searched . | . . . . Spaces Dug . | . . . . Terrain Destroyed 2 | . . . 2 Melee . | . . . . Projectile 2 | . . . 2 AOE . | . . . . Terrain Rammed . | . . . . Walls Destroyed . | . . . . Machines Disabled . | . . . . Actions | -11 -10 -9 -8 --------- Run | Yrd Mat Mat Mat Total 850 | 67 439 195 149 Wait . | . . . . Move 727 | 51 388 174 114 Hop . | . . . . Pick Up 30 | 10 15 1 4 Fast Attach . | . . . . Attach 19 | 6 4 2 7 Detach . | . . . . Swap 7 | . 4 . 3 Drop 8 | . 6 1 1 Fire 52 | . 20 17 15 Melee 5 | . . . 5 Ram 2 | . 2 . . Kick . | . . . . Crush . | . . . . Escape Stasis . | . . . . Rewire . | . . . . Trap . | . . . . Miscellaneous . | . . . . Route ------- -11/Scrapyard -10/Materials -9/Materials (discovered 2 exits: [*Mat] / [*Min]) -8/Materials History --------- Turn | Location | Event 10 | -11/Scrapyard | Discovered new exit (range 16) 61 | -11/Scrapyard | Entered Materials 310 | -10/Materials | Build established: Mutant 702 | -10/Materials | Discovered new exit (range 4) 708 | -10/Materials | Entered another Materials area 708 | -9/Materials | Evolved 2 slots: Propulsion x2 830 | -9/Materials | Discovered new exit (range 7) 939 | -9/Materials | Discovered new exit (range 6) 968 | -9/Materials | Entered another Materials area 968 | -8/Materials | Evolved 2 slots: Power x1, Weapon x1 1009 | -8/Materials | Build established: Scavenger-Mutant 1146 | -8/Materials | Garrison activated, responded to threat 1214 | -8/Materials | Core integrity fell below 50% 1227 | -8/Materials | Core integrity fell below 20% 1233 | -8/Materials | Destroyed by G-47 Trooper with Particle Gun Last Messages --------------- 01207_ Hvy. Particle Cannon destroyed. 01208_ Aluminum Leg destroyed. 01209_ Particle Gun destroyed. 01209_ Knocked back. 01211_ K-01 Serf collects debris. 01217_ Acquired 3 matter. 01218_ K-01 Serf collects debris. 01219_ U-05 Engineer lays Concrete. 01222_ K-01 Serf collects debris. 01223_ U-05 Engineer lays Concrete. 01224_ Hvy. Hammer destroyed. 01224_ U-05 Engineer lays Concrete. 01226_ K-01 Serf collects debris. 01226_ U-05 Engineer lays Concrete. 01229_ K-01 Serf collects debris. 01229_ U-05 Engineer lays Concrete. 01231_ Sml. Laser destroyed. 01232_ U-05 Engineer lays Concrete. 01233_ K-01 Serf collects debris. 01233_ U-05 Engineer lays Concrete. Map ----- +----------------------------------------------------+ | ?????????????????????????????????????????????????? | | ?????????????????????????????????????????????????? | | ?????????????????????????????????????????????????? | | ?????????????????????????????????????????? ??????? | | ?????????????????????????????????????????? +?????? | | ???????????????????????????????????????? #?????? | | ???????????????????????????????????????? #?????? | | ??????????????????????????????????????## ##????? | | ?????????????????????????????????????? #????? | | ??????????????????????????????????????# "" #????? | | ??????????????????????????????????????# T #????? | | ??????????????????????????????????????# #????? | | ??????????????????#???????????????????? ?????? | | ??????????????????# ???????????????????# ####### | | ??????????????????# ???????????????????# # # | | ?????????? ???????# ??????????????????# # # | | ?????????? ?????# ??????????????????# # # | | ??????????? #### ################## # # | | ???????????? # !%= + + # | | ???????????? =%# !%!! ######## # # | | ??????????? "[!=!= #?######## # # | | ???????????# T !%=H= u #?# # # # | | ???????????# " =%!k % u #?# + + # | | ???????????? ;g% #?# # #^ # | | ???????????+ ;g=| #?# # ####### | | ???????????# ?#g!@!% #?# + #?????? | | ???????????# ??##;%#;#####?# # #?????? | | ???????????# ??#######?????######## #?????? | | ???????????## ####+??????????????????????# #?????? | | ????????????#???? ??????????????????????# #?????? | | ????????????????# ???????????????????????# #?????? | | ????????????????# ???????????????????????# #?????? | | ????????????????#????????????????????????# #?????? | | ?????????????????????????????????????????# #?????? | | ?????????????????????????????????????????# #?????? | | ?????????????????????????????????????????# #?????? | | ?????????????????????????????????????????# #?????? | | ?????????????????????????????????????????# #????? | | ?????????????????????????????????????##### #???? | | ?????????????????????????????????????# #### | | ?????????????????????????????????????# | | ?????????????????????????????????????# | | ?????????????????????????????????????# | | ?????????????????????????????????????# ####### | | ???????????????????????????????######## ######## | | ???????????????????????????????# ! # # # | | ???????????????????????????????# # # # | | ???????????????????????????????# + + """ # | | ???????????????????????????????# """ # # """ # | | ???????????????????????????????# """ # # """ # | +----------------------------------------------------+ Best States ------------- Heat Dissipation 31 Energy Generation 19 Energy Capacity 185 Matter Stores 354 Matter Capacity 500 Sight Range 16 Terrain Scan Density 10 Propulsion Shielding 33 Evasion (%) 55 Item Schematics ----------------- None Robot Schematics ------------------ None Fabricated ------------ Nothing Alien Tech Used ----------------- None Achievements -------------- None Challenges ------------ None Game ------ Seed TargetDeliveryFlakker Manual? 0 Play Time 00:16:20 Cumulative 3.0 hours Start 2024.04.01 @ 11:57:08 End 2024.04.01 @ 12:11:46 Sessions 1 Manual Loads 0 Difficulty Rogue Special Mode None Game No. 7 Rogue 7 Adventurer 0 Explorer 0 Win Type - Total 0 Types 0/0/0/0/0/0/0/0/0 Lore% 0 Gallery% 8 Achievement% 8 Wizard Run 0 Options --------- Layout 1 ASCII 0 Keyboard 0 Movement Arrows Keybinds 0 Fullscreen 2 Font 24/Smallcaps Map View 50x35 Zoom Use 0% Tactical HUD 1 Map Filters NONE Filters NONE Steam 1 RUN: f78c427c-bc0c-437b-bae2-a39f879ebd1b